{"text_format":"1","workbook":"xlsx","n_sheets":1,"sheets":["2024"],"not_rendered":{"charts":0,"images":1,"macros":0,"external_links":0,"defined_names":1,"comments":0,"pivot_tables":0},"unopened":[],"bounds":{"document_bytes":16777216,"sheet_cells":100000,"rows_first":2000,"rows_last":500,"rows_between":2000,"halvings":0,"cell_chars":16384,"cell_head_chars":4096},"cells_cut":0,"cells_raw":0,"read":"whole","date_system":"1900"}

{"sheet":"2024","index":0,"n_rows":77,"n_cols":24,"rows_kept":77,"cut":false,"hidden":false,"merged":[[3,1,3,5],[10,20,10,21],[10,6,11,6],[10,8,11,8],[10,9,10,19],[7,9,7,19],[10,7,11,7],[4,1,4,5],[5,1,5,3]]}
["bylinky - mladé rostliny na multiplatech - 2024"]
["objednávkový formulář - kupní smlouva mezi"]
["odběratel"]
["firma"]
["adresa"]
["IČ/DIČ"]
["dodavatel"]
["FLORENSIS HOLLAND B.V. zastoupený THOOLEN s.r.o., IČ48950700"]
[null,null,null,null,null,null,null,"týden dodání",null,6,8,10,12,16,18,20,22,24,32,34,null,null,{"$f":"SUM(W13:W77)","v":0},{"$f":"SUM(X13:X77)","v":0}]
["ceny jsou uváděny vč. licencí a dopravy do vaší firmy",null,null,null,null,null,null,"počet plat celkem",{"$f":"SUM(J10:T10)","v":0},{"$f":"SUM(J13:J77)","v":0},0,0,0,0,0,0,0,0,0,0]
[null,null,null,null,null,null,"mn. v 1 buňce","pikírováno","licence","expedice",null,null,null,null,null,null,null,null,null,null,"cena"]
["code","plato","gar.","Artikelbezeichnung","skupina","new",null,null,null,"7.2","21.2","6.3","20.3","17.4","1.5","15.5","29.5","12.6","7.8","21.8","rostlina","plato","za objed.","s DPH"]
["12505",180,178,"Allium schoenoprasum","semenáč",null,16,"Y",null,null,null,null,null,null,null,null,null,null,null,null,3.37,600.69000000000005,{"$f":"(T13+S13+Q13+P13+O13+N13+M13+L13+K13+J13)*V13","v":0},{"$f":"W13*1.15","v":0}]
["36338",180,178,"Anethum graveolens Dill","semenáč",null,12,"N",null,null,null,null,null,null,null,null,null,null,null,null,3.37,600.69000000000005,0,0]
["41767",128,126,"Artemisia dracunculus Taste","řízek",null,1,"Y",null,null,null,null,null,null,null,null,null,null,null,null,8.35,1052.46,0,0]
["12540",180,178,"Foeniculum vulgare","semenáč",null,8,"N",null,null,null,null,null,null,null,null,null,null,null,null,3.37,600.69000000000005,0,0]
["15556",180,178,"Fragaria x ananassa Compact & Early Loran F1 White","semenáč",null,1,"N",null,null,null,null,null,null,null,null,null,null,null,null,9.92,1765.77,0,0]
["30055",180,178,"Fragaria x ananassa Compact & Early Tristan F1 Deep Rose","semenáč",null,1,"N",null,null,null,null,null,null,null,null,null,null,null,null,9.92,1765.77,0,0]
["32250",180,178,"Fragaria x ananassa Delizz F1 White","semenáč",null,1,"N",null,null,null,null,null,null,null,null,null,null,null,null,12.6,2242.06,0,0]
["15443",180,178,"Fragaria x ananassa Vigerous & Sturdy Elan F1 White","semenáč",null,1,"N",null,null,null,null,null,null,null,null,null,null,null,null,10.89,1938.61,0,0]
["10763",180,178,"Fragaria x ananassa Vigerous & Sturdy Roman F1 Pink","semenáč",null,1,"N",null,null,null,null,null,null,null,null,null,null,null,null,10.41,1852.19,0,0]
["19431",180,178,"Fragaria x ananassa Vigerous & Sturdy Toscana F1 Deep Rose","semenáč",null,1,"N",null,null,null,null,null,null,null,null,null,null,null,null,10.89,1938.61,0,0]
["32034",180,178,"Galium odoratum","řízek",null,1,"N",null,null,null,null,null,null,null,null,null,null,null,null,7.81,1390.84,0,0]
["32036",180,178,"Helichrysum angustifolia Tall Curry","řízek",null,1,"Y",null,null,null,null,null,null,null,null,null,null,null,null,7.81,1390.84,0,0]
["14274",180,178,"Helichrysum italicum Compact Curry","řízek",null,1,"Y",null,null,null,null,null,null,null,null,null,null,null,null,7.81,1390.84,0,0]
["12513",180,178,"Hyssopus officinalis","semenáč",null,6,"N",null,null,null,null,null,null,null,null,null,null,null,null,3.37,600.69000000000005,0,0]
["32033",180,178,"Lavandula angustifolia Tasty Grosso","řízek",null,1,"Y",null,null,null,null,null,null,null,null,null,null,null,null,7.81,1390.84,0,0]
["12519",180,178,"Levisticum officinale","semenáč",null,6,"N",null,null,null,null,null,null,null,null,null,null,null,null,3.37,600.69000000000005,0,0]
["32037",180,178,"Lippia citriodora Limoncello","řízek",null,1,"Y",null,null,null,null,null,null,null,null,null,null,null,null,7.02,1249.83,0,0]
["12509",180,178,"Melissa officinalis Lemon Balm","semenáč",null,4,"N",null,null,null,null,null,null,null,null,null,null,null,null,3.37,600.69000000000005,0,0]
["32040",180,178,"Mentha arvensis Strawberry Mint","řízek",null,1,"Y",null,null,null,null,null,null,null,null,null,null,null,null,7.55,1343.4,0,0]
["32042",180,178,"Mentha piperita citrata Chocolate Mint","řízek",null,1,"Y",null,null,null,null,null,null,null,null,null,null,null,null,7.55,1343.4,0,0]
["32044",180,178,"Mentha piperita citrata Lemon Fresh","řízek",null,1,"Y",null,null,null,null,null,null,null,null,null,null,null,null,7.55,1343.4,0,0]
["32043",180,178,"Mentha piperita citrata Orange Fresh","řízek",null,1,"Y",null,null,null,null,null,null,null,null,null,null,null,null,7.55,1343.4,0,0]
["32079",180,178,"Mentha piperita Peppermint","řízek",null,1,"Y",null,null,null,null,null,null,null,null,null,null,null,null,7.55,1343.4,0,0]
["20526",180,178,"Mentha spicata Moroccan Mint","řízek",null,1,"Y",null,null,null,null,null,null,null,null,null,null,null,null,7.55,1343.4,0,0]
["12682",180,178,"Mentha spicata Spanish Spearmint","řízek",null,1,"Y",null,null,null,null,null,null,null,null,null,null,null,null,7.55,1343.4,0,0]
["41827",180,178,"Mentha spicata Vert Mojito (Spanish Spearmint)","řízek",null,1,"Y",null,null,null,null,null,null,null,null,null,null,null,null,7.55,1343.4,0,0]
["32047",180,178,"Mentha suaveolens Applemint","řízek",null,1,"Y",null,null,null,null,null,null,null,null,null,null,null,null,7.55,1343.4,0,0]
["32048",180,178,"Mentha suaveolens Pineapple Mint","řízek",null,1,"Y",null,null,null,null,null,null,null,null,null,null,null,null,7.55,1343.4,0,0]
["32050",128,126,"Ocimum basilicum African Blue","řízek",null,1,"Y",null,null,null,null,null,null,null,null,null,null,null,null,11.26,1419.06,0,0]
["32073",128,126,"Ocimum basilicum Green Sensation","řízek",null,1,"Y",null,null,null,null,null,null,null,null,null,null,null,null,11.26,1419.06,0,0]
["32052",128,126,"Ocimum basilicum Magic Azure","řízek",null,1,"Y","A",null,null,null,null,null,null,null,null,null,null,null,12.21,1538.65,0,0]
["12762",180,178,"Origanum vulgare Compactum Green","řízek",null,1,"Y",null,null,null,null,null,null,null,null,null,null,null,null,6.49,1155.6099999999999,0,0]
["12685",180,178,"Origanum vulgare Gold Gold","řízek",null,1,"Y",null,null,null,null,null,null,null,null,null,null,null,null,7.02,1249.83,{"$f":"(T45+S45+Q45+P45+O45+N45+M45+L45+K45+J45)*V45","v":0},{"$f":"W45*1.15","v":0}]
["12524",180,178,"Origanum vulgare Green","semenáč",null,8,"N",null,null,null,null,null,null,null,null,null,null,null,null,3.37,600.69000000000005,0,0]
["32055",180,178,"Origanum vulgare Hot & Spicy Hot & Spicy","řízek",null,1,"Y",null,null,null,null,null,null,null,null,null,null,null,null,7.02,1249.83,0,0]
["30324",180,178,"Petroselinum crispum Frisado","semenáč",null,12,"N",null,null,null,null,null,null,null,null,null,null,null,null,3.37,600.69000000000005,0,0]
["32251",180,178,"Petroselinum crispum Gigante d’Italia","semenáč",null,12,"N",null,null,null,null,null,null,null,null,null,null,null,null,3.37,600.69000000000005,0,0]
["35227",128,126,"Rosmarinus officinalis Rosi Green","řízek",null,1,"Y","A",null,null,null,null,null,null,null,null,null,null,null,10.34,1303.1400000000001,0,0]
["30614",128,126,"Rosmarinus officinalis Speedy","řízek",null,1,"Y",null,null,null,null,null,null,null,null,null,null,null,null,8.8800000000000008,1119.1600000000001,0,0]
["41771",128,126,"Rosmarinus officinalis Sudbury Blue","řízek","new",1,"Y",null,null,null,null,null,null,null,null,null,null,null,null,8.8800000000000008,1119.1600000000001,0,0]
["32056",128,126,"Rosmarinus officinalis Winter Blue","řízek",null,1,"Y",null,null,null,null,null,null,null,null,null,null,null,null,8.8800000000000008,1119.1600000000001,0,0]
["13265",128,126,"Rosmarinus repens Blue Rain","řízek",null,1,"Y","A",null,null,null,null,null,null,null,null,null,null,null,10.34,1303.1400000000001,0,0]
["12538",180,178,"Ruta graveolens","semenáč",null,8,"N",null,null,null,null,null,null,null,null,null,null,null,null,3.37,600.69000000000005,0,0]
["32062",128,126,"Salvia officinalis Berggarten Silver","řízek",null,1,"N",null,null,null,null,null,null,null,null,null,null,null,null,8.35,1052.46,0,0]
["32063",128,126,"Salvia officinalis Grower`s Friend","řízek",null,1,"N",null,null,null,null,null,null,null,null,null,null,null,null,8.35,1052.46,0,0]
["12690",128,126,"Salvia officinalis Icterina","řízek",null,1,"N",null,null,null,null,null,null,null,null,null,null,null,null,8.35,1052.46,0,0]
["12531",180,178,"Salvia officinalis Original","semenáč",null,4,"N",null,null,null,null,null,null,null,null,null,null,null,null,3.37,600.69000000000005,0,0]
["15042",128,126,"Salvia officinalis Purple Beauty","řízek",null,1,"N",null,null,null,null,null,null,null,null,null,null,null,null,8.35,1052.46,0,0]
["12692",128,126,"Salvia officinalis Tricolour","řízek",null,1,"N",null,null,null,null,null,null,null,null,null,null,null,null,8.35,1052.46,0,0]
["12529",180,178,"Sanguisorba minor","semenáč",null,6,"N",null,null,null,null,null,null,null,null,null,null,null,null,3.37,600.69000000000005,0,0]
["32064",180,178,"Santolina viridis Oliver","řízek",null,1,"Y",null,null,null,null,null,null,null,null,null,null,null,null,8.61,1531.84,0,0]
["13132",180,178,"Satureja douglasii Indian Mint","řízek",null,1,"Y","A",null,null,null,null,null,null,null,null,null,null,null,9.2899999999999991,1653.35,0,0]
["12507",180,178,"Satureja montana","semenáč",null,8,"N",null,null,null,null,null,null,null,null,null,null,null,null,3.37,600.69000000000005,0,0]
["12781",180,178,"Thymus citriodorus Aureus Aureus","řízek",null,1,"Y",null,null,null,null,null,null,null,null,null,null,null,null,6.23,1108.83,0,0]
["12695",180,178,"Thymus citriodorus Doone Valley Bicolour","řízek",null,1,"Y",null,null,null,null,null,null,null,null,null,null,null,null,6.23,1108.83,0,0]
["12694",180,178,"Thymus citriodorus Lemon","řízek",null,1,"Y",null,null,null,null,null,null,null,null,null,null,null,null,6.23,1108.83,0,0]
["12696",180,178,"Thymus citriodorus Lemon Variegata","řízek",null,1,"Y",null,null,null,null,null,null,null,null,null,null,null,null,6.23,1108.83,0,0]
["12780",180,178,"Thymus citriodorus Silver Queen","řízek",null,1,"Y",null,null,null,null,null,null,null,null,null,null,null,null,6.23,1108.83,0,0]
["12782",180,178,"Thymus praecox Albiflorus","řízek",null,1,"Y",null,null,null,null,null,null,null,null,null,null,null,null,6.23,1108.83,0,0]
["14385",180,178,"Thymus praecox Red Carpet","řízek",null,1,"Y",null,null,null,null,null,null,null,null,null,null,null,null,6.23,1108.83,0,0]
["15044",180,178,"Thymus pulegioides Foxley","řízek",null,1,"Y",null,null,null,null,null,null,null,null,null,null,null,null,6.23,1108.83,0,0]
["41781",128,126,"Thymus vulgaris Evergreen Compact","řízek","new",1,"Y",null,null,null,null,null,null,null,null,null,null,null,null,7.95,1001.41,0,0]
["32082",180,178,"Thymus vulgaris Precompa","řízek",null,1,"Y",null,null,null,null,null,null,null,null,null,null,null,null,6.23,1108.83,0,0]
["12029",180,178,"Thymus vulgaris White","semenáč",null,8,"N",null,null,null,null,null,null,null,null,null,null,null,null,3.37,600.69000000000005,0,0]
["12535",180,178,"Valeriana officinalis","semenáč",null,6,"N",null,null,null,null,null,null,null,null,null,null,null,null,3.37,600.69000000000005,{"$f":"(T77+S77+Q77+P77+O77+N77+M77+L77+K77+J77)*V77","v":0},{"$f":"W77*1.15","v":0}]